Cogmind - Beta 14 @@@ ROGUE MODE // 2024.12.29 @ 00:05:43 Player: Golinth Result: Destroyed by D-53 Grenadier with Mini Grenade Launcher Performance ------------- Evolutions (0) 0 Regions Visited (2) 400 Robots Destroyed (19) 95 Value Destroyed (351) 351 Prototype IDs (0) 0 Alien Tech Used (0) 0 Bonus (0) 0 TOTAL SCORE: 846 Bonus ------- None Cogmind --------- Core Integrity 0/250 Matter 270/300 Energy 86/250 System Corruption 0% Temperature Cool (0) Movement Walking (120) Location -10/Mines Parts ------- > --- POWER (1) -------- Ion Engine > --- PROPULSION (2) --- Aluminum Leg Aluminum Leg > --- UTILITY (2) ------ Small Storage Unit Improved Terrain Scanner > --- WEAPON (2) ------- Light Assault Rifle > --- INVENTORY (8) ---- Ion Engine Compact Wheel Heat Sink Sensor Array Seismic Detector Peak State ------------ > --- POWER ------------ Light Nuclear Core > --- PROPULSION ------- Wheel Wheel > --- UTILITY ---------- Small Storage Unit Seismic Detector > --- WEAPON ----------- Heavy Assault Rifle Heavy Assault Rifle > --- INVENTORY -------- Ion Engine Ion Engine Wheel Wheel Compact Wheel Improved Terrain Scanner Heavy Assault Rifle Heavy Assault Rifle [Rating: 12] Favorites ----------- Power Ion Engine Engine Ion Engine Power Core Light Nuclear Core Propulsion Wheel Leg Aluminum Leg Wheel Wheel Utility Small Storage Unit Device Seismic Detector Storage Small Storage Unit Weapon Heavy Assault Rifle Energy Gun Medium Laser Ballistic Gun Heavy Assault Rifle Build | -11 -10 -10 ------- Run | Yrd Mat Min Slots Evolved . | . . . Power . | . . . Propulsion . | . . . Utility . | . . . Weapon . | . . . Parts Attached 26 | 8 6 12 Power 4 | 1 1 2 Engine 3 | 1 . 2 Core 1 | . 1 . Reactor . | . . . Propulsion 8 | 2 2 4 Treads . | . . . Leg 2 | . . 2 Wheel 6 | 2 2 2 Hover . | . . . Flight . | . . . Utility 7 | 3 1 3 Device 6 | 2 1 3 Storage 1 | 1 . . Processor . | . . . Hackware . | . . . Protection . | . . . Artifact . | . . . Weapon 7 | 2 2 3 Energy Gun 1 | 1 . . Energy Cannon . | . . . Ballistic Gun 6 | 1 2 3 Ballistic Cannon . | . . . Launcher . | . . . Special Weapon . | . . . Impact Weapon . | . . . Slashing Weapon . | . . . Piercing Weapon . | . . . Special Melee Weapon . | . . . Unidentified Prototypes . | . . . Parts Lost 9 | . . 9 Power 2 | . . 2 Propulsion 3 | . . 3 Utility . | . . . Weapon 4 | . . 4 Highest Loss Streak 8 | . . 8 To Critical Strikes . | . . . Average Slot Usage (%) 94 | . 100 83 Engine 7 | . 8 6 Core 4 | . 5 3 Wheel 25 | . 28 19 Device 14 | . 14 14 Storage 14 | . 14 14 Energy Gun 1 | . 2 . Ballistic Gun 24 | . 25 22 Peak Build Rating 12 | 9 12 12 Average Rating 9 | 6 10 9 On Entrance 6 | . 7 12 Naked Turns . | . . . Heaviest Build 17 | 15 17 17 Greatest Support 26 | 20 20 26 Greatest Overweight (x) . | . . . Average Overweight (x) . | . . . Largest Inventory Capacity 8 | 8 8 8 Average Capacity 7 | 7 8 8 Most Carried 8 | 7 8 8 Average Carried 6 | 4 7 4 Final Capacity 8 | 8 8 8 Final Carried 8 | 7 8 5 Class Distribution -------------------- 82% | Mutant 17% | Scavenger-Mutant Dominant Class ---------------- Mutant | -10/Materials Mutant | -10/Mines Resources | -11 -10 -10 ----------- Run | Yrd Mat Min Matter Collected 684 | 313 190 181 Remotely . | . . . Salvage Created 596 | 226 181 189 Parts 33 | 12 13 8 Haulers Intercepted . | . . . Recyclers Shooed 1 | 1 . . Parts Field Recycled . | . . . Retrieved Matter . | . . . Parts Self-Destructed . | . . . Prevented . | . . . Kills | -11 -10 -10 ------- Run | Yrd Mat Min Combat Hostiles Destroyed 11 | . 5 6 Guns 11 | . 5 6 Classes Destroyed 6 | 2 4 . Worker 1 | . 1 . Tunneler 5 | 5 . . Recycler 1 | 1 . . Watcher 1 | . 1 . Swarmer 5 | . 3 2 Grunt 6 | . 2 4 Best Kill Streak 5 | 3 4 5 Combat Bots Only 5 | . 3 5 Max Kills in Single Turn 1 | 1 1 1 Gunslinging . | . . . Exploded . | . . . Melee . | . . . Uniques/NPCs Destroyed . | . . . Combat | -11 -10 -10 -------- Run | Yrd Mat Min Hostile Shots Fired 123 | . 27 96 Missed 32 | . 8 24 Damage Taken 1129 | . 206 923 Core 283 | . 8 275 Absorbed by Shields . | . . . Core Remaining (%) 100 | 100 . . Volleys Fired 68 | 12 23 33 Largest 2 | 2 2 2 Hottest 70 | 70 46 46 Shots Fired 115 | 23 46 46 Gun 115 | 23 46 46 Cannon . | . . . Launcher . | . . . Special . | . . . Kinetic 103 | 11 46 46 Thermal 12 | 12 . . Explosive . | . . . Electromagnetic . | . . . Robot Hit Streak 12 | 12 6 12 Robot Miss Streak 4 | 2 4 2 Penetration Max . | . . . Secondary Targets 1 | . 1 . Max Gunslinging Chain 1 | . 1 . Shots Hit Robots 73 | 15 25 33 Core Hits 27 | 7 10 10 Critical Kills . | . . . Critical Parts Destroyed 1 | . 1 . Critical Strikes 2 | 1 1 . Burn 1 | 1 . . Destroy 1 | . 1 . Melee Attacks . | . . . Impact . | . . . Slashing . | . . . Piercing . | . . . Sneak Attacks . | . . . Combat Hostiles . | . . . Follow-up Attacks . | . . . Damage Inflicted 1032 | 192 366 474 Guns 1032 | 192 366 474 Cannons . | . . . Explosions . | . . . Melee . | . . . Ramming . | . . . Kinetic 894 | 54 366 474 Thermal 138 | 138 . . Explosive . | . . . Electromagnetic . | . . . Impact . | . . . Slashing . | . . . Piercing . | . . . Highest Corruption . | . . . Average Corruption . | . . . Corruption Purged . | . . . Corruption Blocked . | . . . Overload Shots . | . . . Overflow Damage . | . . . Projectiles . | . . . Explosions . | . . . Melee . | . . . Knockbacks . | . . . Impact . | . . . Kinetic . | . . . Secondary . | . . . Self-Inflicted Damage . | . . . Shots . | . . . Rammed . | . . . Targets Rammed . | . . . Kicked . | . . . Crushed . | . . . Highest Temperature 27 | 27 26 18 Average Temperature 8 | 10 10 3 Received Heat Transfer 555 | . 90 465 Siege Activations . | . . . Robots Corrupted . | . . . Combat Hostiles . | . . . Parts Fried . | . . . Impact Corruptions . | . . . Robots Melted . | . . . Combat Hostiles . | . . . Parts Melted 2 | 2 . . Heat Transferred 481 | 481 . . Parts Sabotaged . | . . . Parts Stolen . | . . . Parts Stripped . | . . . Power Chain Reactions . | . . . Alert | -11 -10 -10 ------- Run | Yrd Mat Min Peak Influence 243 | 30 190 243 Initial 73 | . 19 73 Average 90 | 14 87 157 Maximum Alert Level 1 | . . 1 Low Security (%) 88 | 100 100 58 Level 1 11 | . . 41 Level 2 . | . . . Level 3 . | . . . Level 4 . | . . . Level 5 . | . . . High Security . | . . . Max Security . | . . . Squads Dispatched 1 | . 1 . Investigation 1 | . 1 . Extermination . | . . . Reinforcement . | . . . Assault . | . . . Garrison . | . . . Intercept . | . . . Searches Triggered . | . . . Construction Impeded . | . . . Haulers Reinforced . | . . . Active Scanning Responses . | . . . Cargo Convoy Interrupts . | . . . Stealth | -11 -10 -10 --------- Run | Yrd Mat Min Distress Signals 1 | . . 1 Communications Jammed . | . . . Distress Signals . | . . . Times Spotted 24 | . 9 15 Peak Tracking Total 12 | . 3 12 Tactical Retreats 3 | . 1 2 Traps | -11 -10 -10 ------- Run | Yrd Mat Min Traps Triggered 1 | . 1 . Indirectly . | . . . Trap Hack Attempts . | . . . Triggered . | . . . Disarmed . | . . . Reprogrammed . | . . . Reused . | . . . Traps Extracted . | . . . Installed . | . . . Triggered . | . . . Machines | -11 -10 -10 ---------- Run | Yrd Mat Min Machines Disabled . | . . . Max in Single Turn . | . . . Machines Repaired . | . . . Machines Dismantled . | . . . Machines Sabotaged . | . . . Overloaded Fab Kills . | . . . Hacking | -11 -10 -10 --------- Run | Yrd Mat Min Machines Accessed 2 | . 2 . Terminals 1 | . 1 . Fabricators . | . . . Repair Stations . | . . . Recycling Units 1 | . 1 . Scanalyzers . | . . . Garrison Access . | . . . Total Hacks 8 | . 8 . Successful 4 | . 4 . Failed 4 | . 4 . Catastrophic . | . . . Database Lockouts . | . . . Manual 8 | . 8 . Terminals 6 | . 6 . Fabricators . | . . . Repair Stations . | . . . Recycling Units 2 | . 2 . Scanalyzers . | . . . Garrison Access . | . . . Terminal Hacks . | . . . Fabricator Hacks . | . . . Repair Station Hacks . | . . . Recycling Unit Hacks . | . . . Scanalyzer . | . . . Garrison Access Hacks . | . . . Unauthorized Hacks 4 | . 4 . Terminals 2 | . 2 . Track 1 | . 1 . Botnet 1 | . 1 . Fabricators . | . . . Repair Stations . | . . . Recycling Units 2 | . 2 . Reject 1 | . 1 . Recyclers 1 | . 1 . Scanalyzers . | . . . Garrison Access . | . . . Data Cores Recovered . | . . . Used . | . . . Hacking Detections 1 | . 1 . Full Trace Events . | . . . Feedback Events . | . . . Feedback Blocked . | . . . Robot Schematics Acquired . | . . . Robots Built . | . . . Authchips . | . . . Time . | . . . Total Robot Build Rating . | . . . Part Schematics Acquired . | . . . Parts Built . | . . . Authchips . | . . . Time . | . . . Total Part Build Rating . | . . . Parts Repaired . | . . . Time . | . . . Parts Recycled . | . . . Recycled Matter . | . . . Retrieved Matter . | . . . Retrieved Components . | . . . Parts Scanalyzed . | . . . Part Schematics Acquired . | . . . Parts Damaged . | . . . Bothacking | -11 -10 -10 ------------ Run | Yrd Mat Min Used RIF Installer . | . . . Robots Hacked . | . . . Non-combat . | . . . Combat . | . . . Robot Hacks Applied . | . . . Relay Couplers Released . | . . . Fabnet Peak Effective % . | . . . Robots Rewired . | . . . Allies Hacked . | . . . Hacks Repelled . | . . . Allies | -11 -10 -10 -------- Run | Yrd Mat Min Total Allies . | . . . Largest Group . | . . . Highest-Rated Group . | . . . Highest-Rated Ally . | . . . Total Orders . | . . . Ally Attacks . | . . . Total Damage . | . . . Kills . | . . . Allies Corrupted . | . . . Allies Melted . | . . . Intel | -11 -10 -10 ------- Run | Yrd Mat Min Robot Analysis Total . | . . . Derelict Logs Recovered . | . . . Drone Launches . | . . . Drone Recoveries . | . . . Exploration | -11 -10 -10 ------------- Run | Yrd Mat Min Turns Passed 671 | 150 341 180 Spaces Moved 434 | 121 219 94 Core 14 | 14 . . Treads . | . . . Legs 4 | . . 4 Wheels 416 | 107 219 90 Hover . | . . . Flight . | . . . Fastest Speed 50 | 50 80 80 Average Speed 80 | 76 80 86 Slowest Speed 120 | 80 80 120 Overloaded Moves . | . . . Propulsion Burnouts . | . . . Robots Hopped . | . . . Cave-ins Triggered . | . . . Exploration Rate (%) 21 | 4 32 28 Regions Visited 2 Branch Regions 1 Pre-discovered Areas . | . . . Known Exits Taken . | . . . Unknown Exits Taken 2 | 1 1 . Scrap Searched . | . . . Spaces Dug . | . . . Terrain Destroyed . | . . . Melee . | . . . Projectile . | . . . AOE . | . . . Terrain Rammed . | . . . Walls Destroyed . | . . . Machines Disabled . | . . . Actions | -11 -10 -10 --------- Run | Yrd Mat Min Total 640 | 154 341 145 Wait 78 | . 77 1 Move 432 | 120 218 94 Hop . | . . . Pick Up 28 | 14 9 5 Fast Attach . | . . . Attach 15 | 7 . 8 Detach . | . . . Swap 11 | 1 6 4 Drop 8 | . 8 . Fire 68 | 12 23 33 Melee . | . . . Ram . | . . . Kick . | . . . Crush . | . . . Escape Stasis . | . . . Rewire . | . . . Trap . | . . . Miscellaneous . | . . . Route ------- -11/Scrapyard -10/Materials -10/Mines History --------- Turn | Location | Event 11 | -11/Scrapyard | Discovered new exit (range 16) 151 | -11/Scrapyard | Entered Materials 310 | -10/Materials | Build established: Mutant 483 | -10/Materials | Discovered new exit (range 10) 492 | -10/Materials | Entered Mines 527 | -10/Mines | Assembled infested the area 532 | -10/Mines | Assisted by a Guerilla fighting off Assembled 597 | -10/Mines | Core integrity fell below 50% 630 | -10/Mines | Core integrity fell below 20% 668 | -10/Mines | Lost 8 parts (2p2n4w) 672 | -10/Mines | Destroyed by D-53 Grenadier with Mini Grenade Launcher Last Messages --------------- 00597_ S-10 Pest destroyed. 00603_ Hvy. Assault Rifle destroyed. 00603_ G-47 Trooper destroyed. 00625_ Destroyed Imp. Heat Sink. 00633_ Hvy. Assault Rifle destroyed. 00635_ Acquired Lgt. Assault Rifle. 00637_ Ion Engine destroyed. 00639_ G-47 Trooper heat damages Particle Gun. 00643_ G-47 Trooper heat spikes uncontrollably. 00643_ G-47 Trooper overheating. 00644_ G-47 Trooper heat damages Lgt. Nuclear Core, Aluminum Leg, Aluminum Leg. 00644_ G-47 Trooper overheating. 00645_ G-47 Trooper destroyed. 00646_ Acquired 157 matter. 00648_ Acquired Aluminum Leg. 00651_ Acquired 24 matter. 00653_ Acquired Aluminum Leg. 00656_ Acquired Heat Sink. 00662_ Acquired Ion Engine. Map ----- +----------------------------------------------------+ | ????????????? ????# #?????????????????? ??? | | ????????????????????## #?????????????????? #??? | | ????????????????????# #?????????????????? ???? | | ????????????????????# ###?????????????????? ???? | | ????????????????????#=###??????????????????###???? | | ?????????????########%=""????????????????????????? | | ?????????????# $ "###?????????????????????? | | ????????????# = ##????????????????????? | | ???????????# ###### %== ##??#????????????????? | | ??????????# ????????#####%*] ##??????????????????? | | ????????????????????????##% ##??#?##???????????? | | ??????????????????????#?##= ###????#??????????? | | ?????????????????????#?## ###?????????????? | | ??????????????????????## #?#????????????? | | ??????????????????????## ## #??????????????? | | ?????????????????????## #### ###?????????????? | | ????????????????????## #???###???? ??????????? | | ???????????????????## ##???#???? ????????#??? | | ???????????????????# d ##???#???????????????? | | ???????????????????# #????????????????????? | | ??????????????????### d ##?#???#??????????????? | | ??????????????????#?### #????######???????????? | | ?????????????????#????## ##???##= ###?????????? | | ???????????????????????# ###### #??#???????? | | ??????????????????##???# * =% #?????##???? | | ???????????????????????# @####### ##?????????? | | ???????????????????????# #????## ##??#???#???? | | ??????????????????????# ?????# #???????????? | | ?????????????????????# ?????## ##???????#???? | | ????????????????#??? ##?#????####??? ???#???? | | ??????????????????? #??????????????????????? | | ?????????????????? #??????????????????????? | | ?????????????????# #??????????????????????? | | ?????????????????# k #????##??????? ? ??????? | | ?????????????????# ??#?#?? ?????? ??????? | | ?????????????????# ???????????????????????? | | ????????????????? ??? ???????????????????? | | ???????????????? ###?????? ????????????????? | | ?????????????????? ????#?????????????????????? | | ????????????????????? #??????????????????????????? | | ?????????????????????????????????????????????????? | | ?????????????????????????????????????????????????? | | ?????????????????????????????????????????????????? | | ?????????????????????????????????????????????????? | | ?????????????????????????????????????????????????? | | ?????????????????????????????????????????????????? | | ?????????????????????????????????????????????????? | | ?????????????????????????????????????????????????? | | ?????????????????????????????????????????????????? | | ?????????????????????????????????????????????????? | +----------------------------------------------------+ Best States ------------- Heat Dissipation 25 Energy Generation 14 Energy Capacity 250 Matter Stores 300 Matter Capacity 300 Sight Range 16 Robot Scan Range 14 Terrain Scan Range 16 Terrain Scan Density 10 Evasion (%) 55 Item Schematics ----------------- None Robot Schematics ------------------ None Fabricated ------------ Nothing Alien Tech Used ----------------- None Achievements -------------- None Challenges ------------ None Game ------ Seed UltimateCoolingClaymores Manual? 0 Play Time 00:10:52 Cumulative 11.5 hours Start 2024.12.28 @ 23:57:45 End 2024.12.29 @ 00:05:43 Sessions 1 Manual Loads 0 Difficulty Rogue Special Mode None Game No. 22 Rogue 15 Adventurer 7 Explorer 0 Win Type - Total 0 Types 0/0/0/0/0/0/0/0/0 Lore% 6 Gallery% 18 Achievement% 17 Wizard Run 0 Options --------- Layout 0 ASCII 0 Keyboard 0 Movement Mouse Keybinds 0 Fullscreen 1 Font 24/Smallcaps Map View 76x50 Zoom Use 0% Tactical HUD 1 Map Filters NONE Filters NONE Steam 1 RUN: 05ea3661-bb0b-4921-ab70-4cdeaf4b612b